bitfinex/quotes_SOLUSD_20220210
["timestamp","ask_amount","ask_price","bid_price","bid_amount"]
[1644508812265,4.58925048,112.05,112.03,6.06439994]
[1644508812866,4.58925048,112.05,112.01,24.06]
[1644508814266,2.41962524,112.05,112.01,24.06]
[1644508814468,2.16962524,112.03,112.01,24.06]
[1644508814668,2.16962524,112.03,112.02,3.03219997]
[1644508815468,31.73524582,112.03,112.0,10.67]
[1644508815668,31.73524582,112.03,111.98,10.67]
[1644508816469,22.26174678,112.03,111.92,133.42]
[1644508816669,23.5333103,112.03,111.93,10.67]
[1644508816868,0.29756352,112.02,111.93,10.67]
[1644508817072,2.16962524,112.03,111.93,10.67]
[1644508817472,40.36296778,112.02,111.93,10.67]
[1644508817673,53.76086778,112.02,111.93,10.67]
[1644508818674,54.01086778,112.02,111.93,10.67]
[1644508818874,54.31802712,112.02,111.93,10.67]
[1644508819074,56.54924866,112.02,111.93,10.67]
[1644508819273,56.54924866,112.02,111.86,13.4063]
[1644508819475,56.54924866,112.02,111.87,10.67]
[1644508819675,2.16962524,111.95,111.87,10.67]
[1644508819874,20.04782524,111.94,111.85,10.67]
[1644508820077,20.04782524,111.94,111.84,4.465]
[1644508820078,2.48082797,111.93,111.84,47.53701823]
[1644508820380,4.468,111.92,111.82,10.67]
[1644508820581,4.468,111.92,111.78,13.4689]
[1644508820582,6.69922154,111.92,111.78,0.024]
[1644508820814,0.3000873,111.91,111.78,10.694]
[1644508821014,94.0,111.87,111.77,10.687]
[1644508821210,27.67395416,111.85,111.7,41.2284431]
[1644508821412,27.67395416,111.85,111.71,10.67]
[1644508821616,4.473,111.84,111.7,10.67]
[1644508821811,13.4275,111.83,111.7,10.67]
[1644508822211,13.6775,111.83,111.7,10.67]
[1644508822414,13.6775,111.83,111.71,45.55676011]
[1644508822712,13.6775,111.83,111.72,10.67]
[1644508822916,6.70422154,111.82,111.72,10.67]
[1644508823115,2.23122154,111.82,111.72,10.67]
[1644508823315,13.6775,111.83,111.72,10.67]
[1644508823515,6.70422154,111.82,111.72,10.67]
[1644508823716,6.70422154,111.82,111.7,10.67]
[1644508823916,4.473,111.82,111.7,10.67]
[1644508824516,36.65128338,111.81,111.71,38.34836113]
[1644508824716,50.07828338,111.81,111.71,38.34836113]
[1644508824916,4.473,111.8,111.71,38.34836113]
[1644508825116,4.33925048,111.76,111.71,40.02890244]
[1644508825418,4.33925048,111.76,111.71,38.34836113]
[1644508825817,13.427,111.81,111.72,12.35054131]
[1644508826016,13.4226,111.83,111.72,16.82454131]
[1644508826221,23.9036,111.86,111.73,135.10054131]
[1644508826416,53.12882767,111.86,111.74,10.67]
[1644508826615,53.12882767,111.86,111.75,48.53922746]
[1644508826816,53.12882767,111.86,111.76,10.67]
[1644508827120,13.4207,111.85,111.76,10.67]
[1644508827317,13.4207,111.85,111.76,10.721]
[1644508827717,13.4207,111.85,111.76,12.40154131]
[1644508827919,4.472,111.84,111.77,10.67]
[1644508828118,4.472,111.84,111.73,1.68054131]
[1644508828119,17.8952,111.84,111.73,1.68054131]
[1644508828320,13.4232,111.84,111.67,4.472]
[1644508828518,0.31396198,111.82,111.65,4.473]
[1644508828718,15.144,111.81,111.64,24.2557]
[1644508828916,27.67123256,111.81,111.65,4.475]
[1644508829118,40.22394764,111.8,111.66,45.32627303]
[1644508829319,58.12574764,111.8,111.66,58.75457303]
[1644508830119,2.23122154,111.79,111.66,58.75457303]
[1644508830320,2.23122154,111.79,111.66,59.00457303]
[1644508830521,51.4205261,111.8,111.66,65.00457303]
[1644508830721,53.65174764,111.8,111.66,64.75457303]
[1644508830922,4.475,111.79,111.66,58.75457303]
[1644508831121,53.65174764,111.8,111.66,64.75457303]
[1644508831326,37.9927261,111.8,111.67,1.68054131]
[1644508831522,37.9927261,111.8,111.68,10.67]
[1644508831739,37.9927261,111.8,111.7,41.21818788]
[1644508831922,37.9927261,111.8,111.71,10.67]
[1644508832323,37.9927261,111.8,111.71,16.67]
[1644508832522,17.8998,111.82,111.71,16.92]
[1644508832723,13.4258,111.82,111.71,16.67]
[1644508833125,2.23122154,111.81,111.71,10.67]
[1644508833322,2.23122154,111.81,111.7,41.21818788]
[1644508833323,4.473,111.8,111.7,41.21818788]
[1644508833523,32.60513884,111.79,111.7,41.21818788]
[1644508833722,6.70422154,111.8,111.7,41.21818788]
[1644508833921,13.4273,111.81,111.7,41.21818788]
[1644508833922,4.474,111.82,111.7,41.21818788]
[1644508834124,71.5689,111.83,111.71,15.144]
[1644508834323,76.0419,111.83,111.71,10.92]
[1644508834521,76.0419,111.83,111.71,10.67]
[1644508834723,28.03678936,111.82,111.7,41.21818788]
[1644508835022,30.2680109,111.82,111.7,52.13818788]
[1644508835222,2.23122154,111.82,111.7,59.81872919]
[1644508835424,4.473,111.85,111.7,60.26872919]
[1644508835624,44.7457,111.87,111.71,4.923]
[1644508835825,70.2929,111.9,111.72,10.67]
[1644508836022,4.472,111.89,111.73,4.471]
[1644508836226,29.64385014,111.88,111.74,47.28627998]
[1644508836422,4.471,111.87,111.75,0.024]
[1644508837422,4.471,111.87,111.74,41.89027998]
[1644508837625,9.71094561,111.86,111.74,41.64027998]
[1644508837822,13.4223,111.85,111.74,35.64027998]
[1644508838021,29.64385014,111.84,111.74,35.64027998]
[1644508838424,34.11585014,111.84,111.72,10.67]
[1644508838622,36.34707168,111.84,111.69,15.142]
[1644508838824,73.64101011,111.86,111.69,15.392]
[1644508839124,4.473,111.87,111.71,0.45]
[1644508839323,23.9859,111.88,111.72,15.142]
[1644508839523,23.9859,111.88,111.72,16.82254131]
[1644508839723,23.9859,111.88,111.72,120.74864213]
[1644508840025,2.76748524,111.87,111.73,43.31177039]
[1644508840223,20.65908524,111.87,111.73,53.98177039]
[1644508840424,2.23122154,111.86,111.73,60.23177039]
[1644508840623,13.4196,111.87,111.73,61.9123117]
[1644508840824,13.4196,111.87,111.74,4.472]
[1644508841026,13.4196,111.87,111.75,10.67]
[1644508841223,13.4196,111.87,111.75,16.67]
[1644508841426,28.85207874,111.86,111.76,37.44953252]
[1644508841625,28.85207874,111.86,111.77,10.67]
[1644508841824,28.85207874,111.86,111.78,39.69247012]
[1644508842226,13.4196,111.87,111.78,45.69247012]
[1644508842426,0.25,111.86,111.78,45.69247012]
[1644508842623,0.25,111.86,111.77,10.67]
[1644508842824,4.471,111.85,111.74,10.67]
[1644508843025,4.471,111.85,111.73,10.67]
[1644508843229,4.78998843,111.85,111.71,13.142]
[1644508843424,2.23122154,111.84,111.71,13.142]
[1644508843629,4.473,111.83,111.72,36.87847772]
[1644508843824,17.8964,111.84,111.72,36.87847772]
[1644508844026,17.8964,111.84,111.73,10.67]
[1644508844225,13.4234,111.84,111.73,10.67]
[1644508844624,39.17699464,111.83,111.74,47.69050079]
[1644508844825,43.64899464,111.83,111.74,47.69050079]
[1644508845225,43.64899464,111.83,111.71,37.2347]
[1644508845425,45.88021618,111.83,111.71,10.67]
[1644508845626,45.88021618,111.83,111.71,16.67]
[1644508845824,45.88021618,111.83,111.71,10.67]
[1644508846028,46.13021618,111.83,111.71,10.67]
[1644508846229,46.13021618,111.83,111.72,34.68967794]
[1644508846428,39.42699464,111.83,111.72,34.68967794]
[1644508846925,39.42699464,111.83,111.69,13.425]
[1644508847325,39.17699464,111.83,111.69,19.425]
[1644508847529,39.17699464,111.83,111.7,15.10474131]
[1644508847725,39.17699464,111.83,111.72,38.60974597]
[1644508847929,39.17699464,111.83,111.74,39.07434913]
[1644508848926,39.42699464,111.83,111.74,39.07434913]
[1644508849325,43.89899464,111.83,111.74,39.07434913]
[1644508849927,43.89899464,111.83,111.71,24.0926]
[1644508850130,43.89899464,111.83,111.71,13.4226]
[1644508850330,2.23122154,111.82,111.68,37.3808]
[1644508850529,20.13192154,111.82,111.68,23.9545]
[1644508850734,62.34449464,111.83,111.69,4.474]
[1644508851031,62.34449464,111.83,111.7,58.36966153]
[1644508851233,4.473,111.82,111.7,58.36966153]
[1644508851831,4.723,111.82,111.7,71.79396153]
[1644508852233,4.473,111.82,111.7,64.61966153]
[1644508852431,23.1675,111.83,111.71,6.15354131]
[1644508852632,4.473,111.87,111.72,10.67]
[1644508852832,13.4193,111.87,111.75,13.4188]
[1644508853031,13.4193,111.87,111.76,10.67]
[1644508853231,17.8903,111.87,111.76,10.67]
[1644508853432,30.15345637,111.86,111.76,55.32607366]
[1644508853632,4.471,111.85,111.76,55.32607366]
[1644508853834,9.20133938,111.84,111.76,55.32607366]
[1644508854133,22.62363938,111.84,111.76,10.67]
[1644508854331,6.70322154,111.83,111.74,0.024]
[1644508854532,2.23122154,111.83,111.72,24.4265]
[1644508854733,22.62363938,111.84,111.72,24.4265]
[1644508854935,0.25,111.83,111.73,39.65619343]
[1644508855132,0.25,111.83,111.73,39.68019343]
[1644508855331,0.25,111.83,111.73,39.65619343]
[1644508855741,30.15345637,111.82,111.73,39.65619343]
[1644508856233,30.40345637,111.82,111.73,39.65619343]
[1644508857037,30.40345637,111.82,111.72,37.8251]
[1644508857334,15.65672154,111.81,111.72,10.67]
[1644508857535,20.12972154,111.81,111.71,0.024]
[1644508857734,2.23122154,111.8,111.69,13.4495]
[1644508858135,9.20133938,111.79,111.7,35.87506863]
[1644508859236,2.23122154,111.82,111.7,35.87506863]
[1644508859437,13.4256,111.82,111.7,57.04206863]
[1644508859644,4.474,111.84,111.7,57.01806863]
[1644508859839,45.9025,111.85,111.71,2.56024232]
[1644508860137,71.92052154,111.85,111.72,10.694]
[1644508860338,13.4229,111.83,111.73,41.48338029]
[1644508860540,13.4229,111.83,111.73,52.12938029]
[1644508861144,4.473,111.89,111.73,52.12938029]
[1644508861347,4.473,111.89,111.74,0.024]
[1644508861544,29.97178579,111.88,111.75,10.67]
[1644508861745,34.44278579,111.88,111.76,42.26347425]
[1644508861967,9.38300996,111.86,111.77,10.67]
[1644508862568,2.23122154,111.85,111.78,45.78324805]
[1644508862769,23.8322,111.88,111.78,56.70324805]
[1644508862970,13.4178,111.88,111.78,56.70324805]
[1644508863169,24.9952,111.9,111.79,4.471]
[1644508863369,24.9952,111.9,111.8,10.67]
[1644508863570,23.6744,111.91,111.8,10.67]
[1644508863771,28.1108545,111.91,111.81,39.6039774]
[1644508863969,4.469,111.9,111.82,10.67]
[1644508864169,4.469,111.9,111.79,10.67]
[1644508864371,4.719,111.9,111.79,10.67]
[1644508864674,0.25,111.9,111.79,10.67]
[1644508864870,0.25,111.9,111.8,48.64991443]
[1644508864871,4.47,111.89,111.8,48.64991443]
[1644508865072,4.47,111.89,111.81,10.67]
[1644508865272,13.4166,111.89,111.81,10.67]
[1644508866273,45.27837406,111.89,111.82,39.95128442]
[1644508866472,13.4166,111.89,111.82,39.95128442]
[1644508866673,13.6666,111.89,111.82,39.95128442]
[1644508866874,13.6666,111.89,111.81,10.67]
[1644508867474,4.47,111.88,111.81,10.67]
[1644508867676,13.4178,111.88,111.81,10.67]
[1644508867876,29.47412445,111.87,111.81,10.67]
[1644508868380,4.47,111.86,111.81,10.67]
[1644508868579,29.47412445,111.87,111.78,10.67]
[1644508868980,29.47412445,111.87,111.79,44.22858935]
[1644508869181,29.47412445,111.87,111.78,10.67]
[1644508869379,42.89292445,111.87,111.78,10.67]
[1644508869982,42.89292445,111.87,111.77,0.024]
[1644508870182,9.8806713,111.85,111.75,4.495]
[1644508870483,2.23122154,111.84,111.76,0.024]
[1644508870685,6.70322154,111.84,111.75,4.471]
[1644508870985,9.8806713,111.85,111.75,4.471]
[1644508871184,4.472,111.83,111.73,0.024]
[1644508871384,32.8231713,111.85,111.73,44.55722147]
[1644508871586,46.2442713,111.85,111.75,46.59393822]
[1644508871785,44.7332,111.89,111.76,4.472]
[1644508871984,44.7332,111.89,111.77,10.67]
[1644508872185,44.7332,111.89,111.77,10.694]
[1644508872587,13.4186,111.87,111.77,10.694]
[1644508872784,4.471,111.86,111.77,10.694]
[1644508872989,2.23122154,111.86,111.73,10.694]
[1644508873184,0.25,111.86,111.74,0.024]
[1644508873384,0.25,111.86,111.75,15.142]
[1644508873587,44.7301,111.89,111.75,15.166]
[1644508873789,116.84312704,111.92,111.76,44.04269126]
[1644508873993,33.70286162,111.93,111.77,15.59]
[1644508874199,5.65193413,111.91,111.77,6.15350534]
[1644508874399,5.65193413,111.91,111.78,0.024]
[1644508874598,6.70122154,111.9,111.78,0.024]
[1644508874797,13.4192,111.89,111.78,10.694]
[1644508875002,13.4192,111.89,111.79,4.47]
[1644508875198,28.57458209,111.88,111.79,4.47]
[1644508875398,35.27580363,111.88,111.79,4.47]
[1644508875604,33.04458209,111.88,111.79,52.34713277]
[1644508875798,13.4201,111.87,111.79,52.34713277]
[1644508875998,13.4201,111.87,111.79,63.01713277]
[1644508876598,27.5571,111.91,111.79,63.01713277]
[1644508876801,2.23122154,111.89,111.79,63.01713277]
[1644508877002,4.70006009,111.88,111.79,63.01713277]
[1644508877204,4.70006009,111.88,111.79,58.54713277]
[1644508877405,4.95006009,111.88,111.79,58.54713277]
[1644508877607,0.25,111.88,111.79,58.54713277]
[1644508878407,13.4174,111.88,111.79,58.54713277]
[1644508879706,41.3284,111.9,111.79,58.54713277]
[1644508880006,0.25,111.88,111.79,58.79713277]
[1644508880212,0.25,111.88,111.8,4.47]
[1644508880406,0.25,111.88,111.81,10.67]
[1644508880609,23.0861,111.91,111.82,43.44310588]
[1644508880825,36.5007,111.91,111.82,54.11310588]
[1644508881020,36.5007,111.91,111.82,54.36310588]
[1644508881421,36.5007,111.91,111.82,54.11310588]
[1644508882020,13.6646,111.91,111.82,54.11310588]
[1644508882725,48.76105384,111.91,111.82,54.11310588]
[1644508882920,17.67414191,111.89,111.82,54.11310588]
[1644508883320,17.67414191,111.89,111.79,23.8342]
[1644508883521,6.70122154,111.88,111.79,23.8342]
[1644508883721,6.70122154,111.88,111.79,29.8342]
[1644508883926,4.47,111.88,111.79,23.8342]
[1644508884321,32.92991824,111.87,111.79,23.8342]
[1644508885225,4.471,111.86,111.77,0.024]
[1644508885423,4.471,111.86,111.76,10.67]
[1644508885623,20.12122154,111.86,111.76,10.67]
[1644508885823,20.37122154,111.86,111.76,10.67]
[1644508886022,18.14,111.86,111.77,38.953219]
[1644508886223,2.23122154,111.89,111.77,38.953219]
[1644508886424,47.9925,111.9,111.78,0.024]
[1644508886626,47.9925,111.9,111.78,10.67]
[1644508886825,47.9925,111.9,111.78,10.694]
[1644508887224,13.417,111.88,111.79,45.35594121]
[1644508887426,7.4866446,111.87,111.79,45.35594121]
[1644508887629,11.9576446,111.87,111.79,45.35594121]
[1644508888428,17.8888,111.87,111.79,45.35594121]
[1644508888628,2.23122154,111.89,111.8,10.67]
[1644508888827,51.58922704,111.94,111.8,10.67]
[1644508889029,4.47,111.91,111.8,10.67]
[1644508889229,4.47,111.92,111.8,10.67]
[1644508889428,32.74743486,111.91,111.81,38.34011773]
[1644508889630,32.74743486,111.91,111.81,49.01011773]
[1644508889832,32.74743486,111.91,111.82,13.412]
[1644508890028,32.74743486,111.91,111.83,41.74949652]
[1644508890930,0.25,111.91,111.83,41.74949652]
[1644508891529,13.4116,111.92,111.83,55.16039652]
[1644508891731,4.469,111.94,111.83,41.99949652]
[1644508891930,2.54312704,111.95,111.84,12.35350534]
[1644508892130,31.53934357,111.96,111.85,39.29504788]
[1644508892131,36.00734357,111.96,111.85,39.29504788]
[1644508892330,31.53934357,111.96,111.86,10.67]
[1644508892534,36.00734357,111.96,111.87,42.0543061]
[1644508892731,31.53934357,111.96,111.88,13.4049]
[1644508893134,31.53934357,111.96,111.86,10.67]
[1644508893331,4.466,111.95,111.82,4.466]
[1644508893531,4.466,111.95,111.81,46.2661]
[1644508893532,4.466,111.95,111.84,10.67]
[1644508893732,4.466,111.95,111.82,13.4114]
[1644508893733,13.41,111.94,111.82,13.4114]
[1644508893935,4.469,111.93,111.79,10.67]
[1644508894134,7.81545218,111.92,111.79,10.694]
[1644508894332,18.48545218,111.92,111.79,0.024]
[1644508894533,31.53934357,111.9,111.79,0.024]
[1644508894733,31.53934357,111.9,111.78,44.68041637]
[1644508894934,7.81545218,111.88,111.78,44.68041637]
[1644508895134,7.81545218,111.88,111.79,0.024]
[1644508895335,7.81545218,111.88,111.78,44.65641637]
[1644508895336,7.81545218,111.88,111.78,44.90641637]
[1644508895538,13.4177,111.89,111.78,44.90641637]
[1644508895734,4.47,111.9,111.79,12.35911226]
[1644508895934,4.47,111.9,111.81,13.4134]
[1644508896535,4.47,111.9,111.82,38.20465399]
[1644508896735,0.89418689,111.89,111.82,38.20465399]
[1644508897136,0.89418689,111.89,111.79,10.694]
[1644508897435,0.89418689,111.89,111.82,13.4125]
[1644508898437,13.6634,111.9,111.83,39.89854014]
[1644508898737,0.25,111.9,111.83,39.89854014]
[1644508899137,62.6462,111.91,111.82,13.4125]
[1644508900037,31.48837042,111.9,111.82,54.94826114]
[1644508900240,13.411,111.93,111.82,52.45576114]
[1644508900641,13.411,111.93,111.82,52.20576114]
[1644508900842,167.5495,111.96,111.82,54.1465166]
[1644508901039,48.7805,111.96,111.82,54.1465166]
[1644508901341,32.24759974,111.95,111.82,60.1465166]
[1644508902239,32.24759974,111.95,111.82,150.3165166]
[1644508902440,32.24759974,111.95,111.88,34.60467519]
[1644508902841,4.468,111.98,111.88,34.85467519]
[1644508903042,2.54312704,112.01,111.89,10.67]
[1644508903344,2.54312704,112.02,111.89,17.07675546]
[1644508903541,4.466,112.02,111.89,18.61075546]
[1644508903742,27.78904426,112.01,111.9,45.96771725]
[1644508903945,13.4004,112.01,111.91,24.0707]
[1644508904144,75.81922704,112.04,111.91,120.39745546]
[1644508904342,2.54312704,112.04,111.91,126.64745546]
[1644508904643,0.03760361,112.05,111.92,1.69075546]
[1644508904842,0.03760361,112.05,111.93,4.464]
[1644508905052,30.49986577,112.07,111.94,47.00046968]
[1644508905243,34.96386577,112.07,111.95,13.3928]
[1644508905445,37.50699281,112.07,111.96,58.82959269]
[1644508905643,37.50699281,112.07,111.96,48.15959269]
[1644508906044,33.04299281,112.07,111.96,48.15959269]
[1644508906248,57.28819281,112.07,111.96,58.82959269]
[1644508906544,4.463,112.06,111.96,58.82959269]
[1644508906745,24.28280361,112.07,111.96,78.47349269]
[1644508907748,33.08736737,112.06,111.96,78.47349269]
[1644508907957,24.28280361,112.07,111.96,78.47349269]
[1644508908150,0.03760361,112.07,111.96,78.47349269]
[1644508908548,0.03760361,112.07,111.96,82.93649269]
[1644508908749,4.50060361,112.09,111.96,218.04724815]
[1644508908952,0.03760361,112.07,111.96,84.62724815]
[1644508909152,0.03760361,112.09,112.0,13.3871]
[1644508909451,0.03760361,112.11,112.01,16.81539434]
[1644508909650,0.48570005,112.12,112.01,16.81539434]
[1644508909850,0.48570005,112.12,112.02,12.35439434]
[1644508910052,0.48570005,112.12,112.03,4.461]
[1644508910251,0.44809644,112.12,112.04,53.76653668]
[1644508910452,25.61712704,112.18,112.04,67.14783668]
[1644508910453,0.03760361,112.17,112.04,67.14783668]
[1644508910654,0.03760361,112.14,112.04,75.08223102]
[1644508910857,0.03760361,112.17,112.04,73.39783668]
[1644508911255,0.03760361,112.17,112.04,75.08223102]
[1644508912057,0.03760361,112.17,112.05,4.46]
[1644508912256,0.03760361,112.18,112.07,13.3764]
[1644508912457,0.03760361,112.17,112.08,10.67]
[1644508912657,37.38967903,112.2,112.08,48.40344896]
[1644508912857,4.68203831,112.18,112.08,54.40344896]
[1644508913063,4.68203831,112.18,112.08,48.40344896]
[1644508913257,4.458,112.17,112.08,48.40344896]
[1644508913462,37.28524724,112.16,112.08,37.73344896]
[1644508913657,2.23122154,112.16,112.08,37.73344896]
[1644508913856,4.458,112.17,112.08,37.73344896]
[1644508914056,17.90466331,112.18,112.08,37.73344896]
[1644508914263,31.28756331,112.18,112.08,37.73344896]
[1644508914484,17.8409,112.18,112.08,37.73344896]
[1644508914686,4.458,112.18,112.08,37.73344896]
[1644508914885,24.87400361,112.19,112.09,10.67]
[1644508915086,24.8364,112.19,112.1,44.47944228]
[1644508915284,27.25845251,112.19,112.1,44.47944228]
[1644508916091,24.8364,112.19,112.1,44.47944228]
[1644508916886,4.458,112.2,112.1,55.39944228]
[1644508917086,23.68780361,112.21,112.1,61.39944228]
[1644508917287,0.03760361,112.22,112.1,63.08383662]
[1644508917487,0.03760361,112.24,112.1,63.08383662]
[1644508917693,0.03760361,112.22,112.11,4.457]
[1644508917888,0.03760361,112.23,112.12,10.67]
[1644508918089,0.03760361,112.22,112.13,4.457]
[1644508918289,0.22448377,112.25,112.13,72.18846446]
[1644508918290,0.03760361,112.24,112.13,72.18846446]
[1644508918487,0.26208738,112.25,112.14,10.67]
[1644508918697,0.26208738,112.25,112.15,51.38396639]
[1644508918896,0.22448377,112.25,112.16,10.67]
[1644508919089,0.22448377,112.25,112.17,41.84291861]
[1644508919292,0.22448377,112.25,112.18,15.125]
[1644508919790,0.00448377,112.25,112.18,23.05518453]
[1644508920093,0.00448377,112.25,112.19,34.70177541]
[1644508920293,0.00448377,112.25,112.2,15.125]
[1644508920491,0.00448377,112.25,112.2,96.30518453]
[1644508920691,0.00448377,112.25,112.2,110.16018453]
[1644508920892,0.00448377,112.25,112.21,12.80018453]
[1644508921094,0.00448377,112.25,112.22,4.905]
[1644508921297,0.00448377,112.25,112.23,17.18439994]
[1644508921496,0.03760361,112.35,112.25,0.44551623]
[1644508921695,31.40472197,112.42,112.26,15.12]
[1644508921994,0.03760361,112.35,112.26,15.37]
[1644508922200,2.26882515,112.41,112.26,32.31172713]
[1644508922395,0.03760361,112.37,112.26,196.00937018]
[1644508922599,6.71882515,112.4,112.26,176.04820184]
[1644508922805,2.23122154,112.4,112.27,4.45]
[1644508922995,2.26882515,112.39,112.28,10.67]
[1644508923200,2.23122154,112.39,112.29,41.67421148]
[1644508923398,2.23122154,112.39,112.29,57.04421148]
[1644508923698,0.03760361,112.43,112.29,58.34421148]
[1644508923898,0.03760361,112.43,112.29,52.34421148]
[1644508923899,6.68122154,112.39,112.29,52.34421148]
[1644508924096,2.23122154,112.39,112.29,52.34421148]
[1644508924297,2.23122154,112.39,112.29,58.34421148]
[1644508924496,0.03760361,112.4,112.29,58.34421148]
[1644508924697,0.03760361,112.42,112.29,58.34421148]
[1644508924897,0.03760361,112.41,112.29,58.34421148]
[1644508925096,4.45,112.4,112.29,58.34421148]
[1644508925297,6.68122154,112.4,112.29,52.59421148]
[1644508925497,2.23122154,112.4,112.29,52.59421148]
[1644508925697,0.03760361,112.41,112.29,58.34421148]
[1644508925899,4.45,112.4,112.29,58.34421148]
[1644508926198,1.73122154,112.4,112.29,52.34421148]
[1644508926400,42.89737463,112.39,112.29,52.34421148]
[1644508926597,38.44737463,112.39,112.29,52.34421148]
[1644508926797,38.44737463,112.39,112.29,58.34421148]
[1644508926996,4.45,112.38,112.29,52.34421148]
[1644508927197,1.35551756,112.37,112.29,52.34421148]
[1644508927599,3.5867391,112.37,112.29,52.34421148]
[1644508927802,1.35551756,112.37,112.29,52.34421148]
[1644508928198,2.23122154,112.36,112.29,52.34421148]
[1644508928402,2.23122154,112.4,112.29,52.34421148]
[1644508928599,0.03760361,112.39,112.29,58.59421148]
[1644508928901,0.03760361,112.41,112.29,58.59421148]
[1644508929098,4.45,112.41,112.29,58.34421148]
[1644508929300,2.23122154,112.39,112.29,58.34421148]
[1644508929498,0.03760361,112.41,112.29,58.59421148]
[1644508929699,4.48760361,112.43,112.29,150.44517969]
[1644508929902,0.03760361,112.41,112.3,4.75255628]
[1644508930100,0.03760361,112.42,112.31,10.67]
[1644508930301,0.03760361,112.41,112.32,4.448]
[1644508930501,38.5165678,112.46,112.33,56.42446296]
[1644508930706,4.448,112.45,112.33,56.42446296]
[1644508930902,4.448,112.45,112.33,56.67446296]
[1644508931102,4.48560361,112.46,112.33,56.67446296]
[1644508931309,4.448,112.46,112.33,56.67446296]
[1644508931505,0.03760361,112.46,112.33,62.67446296]
[1644508931805,33.83912273,112.45,112.33,62.67446296]
[1644508932002,4.48560361,112.46,112.33,62.67446296]
[1644508932204,0.03760361,112.47,112.34,1.68096821]
[1644508932408,4.48560361,112.48,112.34,1.93096821]
[1644508932605,0.03760361,112.47,112.37,0.45]
[1644508932807,0.03760361,112.48,112.38,11.12]
[1644508933005,28.65762904,112.55,112.39,186.44687492]
[1644508933232,4.445,112.54,112.39,56.44687492]
[1644508933404,11.34948169,112.53,112.41,47.01100379]
[1644508933604,0.20421854,112.55,112.43,36.57744408]
[1644508933804,0.20421854,112.55,112.43,36.82744408]
[1644508934008,4.444,112.54,112.43,36.57744408]
[1644508934406,4.444,112.54,112.42,10.67]
[1644508934407,2.23122154,112.53,112.42,10.67]
[1644508934608,4.445,112.52,112.36,13.342]
[1644508934806,16.94531409,112.52,112.37,4.446]
[1644508935007,16.94531409,112.52,112.38,10.67]
[1644508935306,4.446,112.54,112.39,4.446]
[1644508935506,8.03055395,112.53,112.4,45.2866609]
[1644508935707,8.03055395,112.53,112.41,4.445]
[1644508935908,8.03055395,112.53,112.42,39.02864592]
[1644508936108,51.80591854,112.55,112.42,39.02864592]
[1644508936311,51.80591854,112.55,112.42,45.27864592]
[1644508936711,54.03714008,112.55,112.42,45.27864592]
[1644508936909,47.36091854,112.55,112.42,45.27864592]
[1644508937118,30.14233292,112.54,112.42,45.27864592]
[1644508937412,34.58733292,112.54,112.42,45.27864592]
[1644508937613,0.20421854,112.55,112.43,16.7871229]
[1644508937812,0.20421854,112.55,112.43,23.4871229]
[1644508938012,0.20421854,112.55,112.44,1.6721229]
[1644508938212,0.20421854,112.55,112.45,10.67]
[1644508938612,0.37344936,112.53,112.45,56.9651879]
[1644508938813,2.23122154,112.54,112.45,57.2151879]
[1644508939015,0.20421854,112.55,112.45,57.2151879]
[1644508939614,4.444,112.54,112.45,10.67]
[1644508940015,2.23122154,112.53,112.45,10.67]
[1644508940214,27.42383734,112.55,112.45,10.67]
[1644508940413,13.54231854,112.55,112.45,10.67]
[1644508940613,40.64286193,112.54,112.45,10.67]
[1644508940842,45.08686193,112.54,112.41,10.67]
[1644508941039,13.3433,112.51,112.38,10.67]
[1644508941640,71.3469,112.54,112.39,46.972113]
[1644508941838,23.5098,112.54,112.4,10.67]
[1644508942039,2.43544008,112.55,112.41,4.445]
[1644508942239,2.23122154,112.53,112.42,10.67]
[1644508942640,34.01989386,112.52,112.39,46.972113]
[1644508942838,34.01989386,112.52,112.39,47.222113]
[1644508943039,2.23122154,112.51,112.39,47.222113]
[1644508943239,14.67399833,112.5,112.39,47.222113]